bitfinex/quotes_ETHUSD_20240614
["timestamp","ask_amount","ask_price","bid_price","bid_amount"]
[1718369185438,0.0592304,3515.8,3515.5,0.03411488]
[1718369185749,0.57849795,3515.8,3515.2,2.45]
[1718369185917,0.0592304,3515.8,3515.6,0.03404761]
[1718369186117,0.0592304,3515.8,3515.2,2.45]
[1718369186353,0.0592304,3515.8,3515.7,0.03398035]
[1718369186555,0.0592304,3515.8,3515.2,2.45]
[1718369186738,0.0592304,3515.8,3515.7,0.03398035]
[1718369186939,0.57849795,3515.8,3515.2,2.45]
[1718369187278,0.0592304,3515.7,3515.2,2.45]
[1718369188151,0.0592304,3515.8,3515.2,2.45]
[1718369189758,0.0592304,3516.0,3515.2,2.45]
[1718369190059,1.44461795,3516.0,3515.2,2.45]
[1718369190256,1.44461795,3516.0,3514.9,3.1858]
[1718369190257,0.7,3515.8,3514.9,3.1858]
[1718369190465,0.0592304,3515.7,3514.9,2.4858]
[1718369190955,0.0592304,3515.7,3514.4,7.27]
[1718369190956,0.7,3515.2,3514.4,7.27]
[1718369191182,0.0592304,3515.1,3514.3,2.3106]
[1718369195190,0.7592304,3515.5,3514.4,0.75690502]
[1718369195376,0.7592304,3515.5,3514.6,0.7]
[1718369195377,0.0592304,3515.5,3514.6,0.7]
[1718369195556,0.7592304,3515.5,3514.6,0.7]
[1718369197571,0.7592304,3515.5,3513.8,4.708]
[1718369197572,0.7,3515.1,3513.8,4.708]
[1718369197897,0.7,3515.1,3514.2,3.193]
[1718369198385,0.7,3515.1,3514.3,0.03501462]
[1718369198960,0.7592304,3515.3,3514.3,0.03501462]
[1718369205083,0.7592304,3515.3,3514.4,0.7]
[1718369205577,0.7592304,3515.3,3514.5,0.03485763]
[1718369208927,0.0592304,3515.3,3514.5,0.03485763]
[1718369209129,0.0592304,3515.3,3514.5,0.09175758]
[1718369210320,0.0592304,3515.3,3514.5,0.03485763]
[1718369212614,0.0592304,3515.3,3514.5,0.09175757]
[1718369213015,0.0592304,3515.3,3514.6,2.46]
[1718369213217,0.0592304,3515.3,3514.7,0.03468109]
[1718369213843,0.7,3515.5,3514.7,0.03468109]
[1718369214007,0.0592304,3515.4,3514.7,0.03468109]
[1718369214209,0.0592304,3515.4,3514.6,2.46]
[1718369214755,0.0592304,3515.4,3514.7,0.03468109]
[1718369214937,0.0592304,3515.6,3514.7,0.09158099]
[1718369215137,2.74207263,3516.0,3515.0,0.7]
[1718369215452,0.7592304,3515.9,3515.1,2.3889]
[1718369215805,0.7592304,3515.9,3515.1,2.42331193]
[1718369216510,0.0592304,3515.9,3515.1,2.42331193]
[1718369216750,0.7,3515.8,3515.1,2.42331193]
[1718369216918,0.0592304,3515.7,3515.1,2.42331193]
[1718369219355,0.36016344,3515.7,3515.1,2.42331193]
[1718369219729,0.36016344,3515.7,3515.1,0.03441193]
[1718369219730,0.7,3515.6,3515.1,0.03441193]
[1718369219960,0.0592304,3515.5,3514.8,2.3235]
[1718369220248,0.0592304,3515.5,3515.2,0.03423285]
[1718369220420,0.0592304,3515.5,3514.8,2.3235]
[1718369220614,0.0592304,3515.5,3515.3,0.03416557]
[1718369220819,0.0592304,3515.5,3514.8,2.3235]
[1718369221020,0.0592304,3515.5,3515.4,0.0340983]
[1718369221219,0.0592304,3515.5,3514.8,2.3235]
[1718369221643,3.0605,3515.4,3514.5,2.4883]
[1718369221863,0.0592304,3515.3,3514.9,0.0344347]
[1718369222067,0.0592304,3515.3,3514.5,2.4883]
[1718369222365,0.0592304,3515.3,3515.0,0.03431989]
[1718369222561,0.0592304,3515.3,3514.5,2.4883]
[1718369222737,0.0592304,3515.3,3515.1,0.03425261]
[1718369222938,0.0592304,3515.3,3514.5,5.4883]
[1718369223139,0.0592304,3515.3,3515.2,0.03418533]
[1718369223553,0.0592304,3515.3,3514.5,5.4883]
[1718369223734,0.0592304,3515.3,3515.2,0.03418533]
[1718369223937,0.0592304,3515.3,3514.5,5.4883]
[1718369224139,0.0592304,3515.3,3515.2,0.03418533]
[1718369224351,1.07120344,3515.3,3514.1,2.3498]
[1718369224532,0.7,3515.1,3514.1,3.0498]
[1718369224726,0.0592304,3515.0,3514.1,3.0498]
[1718369225821,0.0592304,3515.0,3514.2,0.0348583]
[1718369226461,0.7,3514.9,3514.2,0.0348583]
[1718369226667,0.0592304,3514.8,3514.2,0.0348583]
[1718369228953,0.0592304,3515.0,3514.2,0.0348583]
[1718369234071,0.7,3515.1,3514.2,0.0348583]
[1718369234275,0.0592304,3515.0,3514.2,0.0348583]
[1718369234443,0.7,3514.9,3514.2,0.0348583]
[1718369234792,0.0592304,3514.8,3514.2,0.0348583]
[1718369238442,0.0592304,3514.8,3514.0,0.7]
[1718369238646,0.0592304,3514.8,3514.1,0.03507099]
[1718369239056,0.7,3514.5,3514.1,0.03507099]
[1718369239294,0.0592304,3514.4,3513.5,2.9626]
[1718369239474,0.0592304,3514.4,3514.2,0.03500367]
[1718369239643,0.0592304,3514.4,3513.4,1.709]
[1718369239644,2.3519,3514.2,3513.4,1.709]
[1718369239843,2.3519,3514.2,3513.5,0.03547498]
[1718369241088,2.3519,3514.2,3513.5,0.73547498]
[1718369242518,0.7592304,3514.1,3513.5,0.03547498]
[1718369242659,0.7592304,3514.1,3513.0,3.0]
[1718369242854,0.7592304,3514.1,3513.1,0.03591498]
[1718369243054,0.7592304,3514.1,3512.9,4.0572]
[1718369243351,0.7592304,3514.1,3513.1,0.7]
[1718369243888,0.7592304,3514.1,3513.2,0.03584762]
[1718369244755,0.0592304,3514.1,3513.2,0.03584762]
[1718369244951,0.7592304,3514.1,3513.2,0.03584762]
[1718369246867,0.7592304,3514.1,3513.1,0.7]
[1718369247067,0.7592304,3514.1,3513.2,0.03584762]
[1718369251987,0.0592304,3514.1,3513.2,0.03584762]
[1718369252297,2.3519,3514.2,3513.3,2.498]
[1718369252456,2.3519,3514.2,3513.5,0.7]
[1718369252785,2.3519,3514.2,3513.6,0.03557824]
[1718369255051,2.3519,3514.2,3513.4,0.0569168]
[1718369255290,2.3519,3514.2,3513.5,0.03564558]
[1718369257976,0.0592304,3514.1,3513.5,0.03564558]
[1718369258287,0.0592304,3514.1,3513.3,0.7]
[1718369258486,0.0592304,3514.1,3513.4,0.03579122]
[1718369258673,0.0592304,3514.1,3513.3,0.7]
[1718369259005,0.0592304,3514.1,3513.4,0.03579122]
[1718369259363,0.0592304,3514.1,3513.1,2.9944]
[1718369259974,0.0592304,3514.1,3513.2,0.03628667]
[1718369266130,2.3736,3514.0,3513.2,0.03628667]
[1718369266303,0.0592304,3513.9,3513.2,0.03628667]
[1718369268023,2.3249,3513.5,3513.2,0.03628667]
[1718369268224,0.0592304,3513.4,3512.5,8.979]
[1718369268433,0.0592304,3513.4,3513.3,0.03621932]
[1718369268606,0.0592304,3513.4,3512.5,8.979]
[1718369268997,0.0592304,3513.4,3512.6,0.03669087]
[1718369269493,0.7592304,3513.4,3512.6,0.03669087]
[1718369275832,0.0592304,3513.4,3512.6,0.03669087]
[1718369278542,0.7592304,3513.4,3512.6,0.03669087]
[1718369282441,0.0592304,3513.4,3512.6,0.03669087]
[1718369282746,0.0592304,3513.4,3512.6,0.73669087]
[1718369286244,2.4856,3513.3,3512.6,0.03669087]
[1718369286611,0.0592304,3513.2,3512.4,0.7]
[1718369286815,0.0592304,3513.2,3512.7,0.03687251]
[1718369287039,0.0592304,3513.2,3512.4,0.7]
[1718369287239,0.0592304,3513.2,3512.8,0.03680513]
[1718369287447,0.0592304,3513.2,3512.4,0.7]
[1718369287614,0.0592304,3513.2,3512.9,0.03673776]
[1718369287815,0.0592304,3513.2,3512.4,0.7]
[1718369288037,0.0592304,3513.2,3513.0,0.0366704]
[1718369288236,0.0592304,3513.2,3512.4,0.7]
[1718369288648,0.0592304,3513.2,3512.5,0.03700726]
[1718369290971,0.0592304,3513.2,3512.6,0.03693988]
[1718369292257,0.0592304,3513.2,3512.4,0.7]
[1718369292441,0.0592304,3513.2,3512.7,0.03687251]
[1718369292654,0.0592304,3513.2,3512.5,0.7]
[1718369293157,0.0592304,3513.2,3512.6,0.03693988]
[1718369294979,0.0592304,3513.2,3512.7,0.03687251]
[1718369295326,0.0592304,3513.2,3512.5,0.7]
[1718369295640,0.0592304,3513.2,3512.8,0.03680513]
[1718369295854,0.0592304,3513.2,3512.5,0.7]
[1718369296039,0.7,3513.1,3512.9,0.03673776]
[1718369296253,2.5151304,3513.0,3511.9,1.709]
[1718369296568,2.5151304,3513.0,3512.1,0.7]
[1718369296931,2.5151304,3513.0,3512.2,0.03732136]
[1718369297129,2.3072,3512.8,3512.2,0.03732136]
[1718369297430,0.49223598,3513.6,3512.2,0.03732136]
[1718369297431,2.3072,3512.4,3512.2,0.03732136]
[1718369297629,2.3072,3512.4,3511.4,2.409]
[1718369298033,2.3072,3512.4,3511.6,0.7]
[1718369298229,2.57828756,3513.2,3511.5,0.0377932]
[1718369298230,0.7,3512.0,3511.5,0.0377932]
[1718369298570,0.7,3511.7,3510.9,0.1222501]
[1718369298875,2.3695,3511.8,3510.9,0.1222501]
[1718369299070,0.0592304,3511.7,3510.9,0.1222501]
[1718369299248,0.7,3511.6,3511.0,0.035157]
[1718369299445,0.0592304,3511.5,3511.0,0.035157]
[1718369299650,0.0592304,3511.5,3510.9,0.1222501]
[1718369299827,0.0592304,3511.6,3510.9,0.1222501]
[1718369300232,0.0592304,3511.6,3511.0,0.035157]
[1718369301171,0.37210344,3511.6,3511.0,0.035157]
[1718369301550,0.7,3511.5,3510.9,0.1222501]
[1718369301750,0.0592304,3511.4,3511.1,0.03508957]
[1718369301974,0.0592304,3511.4,3510.9,0.1222501]
[1718369302416,0.0592304,3511.4,3511.0,0.035157]
[1718369302679,0.0592304,3511.4,3510.9,0.1222501]
[1718369302906,0.0592304,3511.4,3511.1,0.03508957]
[1718369303047,0.0592304,3511.4,3511.0,0.035157]
[1718369303243,0.0592304,3511.5,3510.9,0.1222501]
[1718369303586,0.0592304,3511.5,3511.0,0.035157]
[1718369303961,0.0592304,3511.5,3510.9,0.1222501]
[1718369304314,0.0592304,3511.5,3511.1,0.03508957]
[1718369304611,0.40339074,3511.5,3510.9,0.1222501]
[1718369305115,2.3695,3511.8,3511.0,0.035157]
[1718369305266,2.941534,3513.7,3511.0,0.035157]
[1718369305267,2.3412,3512.3,3511.4,0.7]
[1718369305460,2.3412,3512.3,3511.5,0.05695232]
[1718369305660,2.3412,3512.3,3511.6,0.7]
[1718369305865,3.37232,3512.3,3511.6,0.7]
[1718369306077,12.18,3513.0,3511.7,0.0351526]
[1718369306323,2.996,3513.2,3511.7,0.0351526]
[1718369306324,0.0592304,3512.3,3511.7,0.0351526]
[1718369306520,2.3851,3512.9,3511.7,0.0351526]
[1718369306693,0.7,3512.6,3511.7,0.7]
[1718369306902,2.3851,3512.9,3511.8,0.05694346]
[1718369307117,2.3851,3512.9,3511.3,1.709]
[1718369307118,0.2977404,3512.8,3511.9,0.03517727]
[1718369307416,0.2977404,3512.8,3511.5,0.05694152]
[1718369307592,0.2977404,3512.8,3512.0,0.03510987]
[1718369307792,0.2977404,3512.8,3511.6,0.05694153]
[1718369308321,0.2977404,3512.8,3511.7,0.03531209]
[1718369308617,0.2977404,3512.8,3511.8,0.05694153]
[1718369308990,0.2977404,3512.8,3511.9,0.03517727]
[1718369309201,2.4856,3513.4,3512.0,0.05694154]
[1718369309386,0.0592304,3513.3,3512.0,0.05694154]
[1718369309585,2.4856,3513.4,3512.1,3.23432542]
[1718369309808,0.0592304,3513.3,3512.1,3.23432542]
[1718369310283,0.0592304,3513.8,3512.1,3.17738961]
[1718369310482,0.0592304,3513.7,3512.1,3.17738961]
[1718369311023,1.49267554,3513.7,3512.1,0.03494447]
[1718369311319,1.43344514,3513.6,3512.1,0.03494447]
[1718369311535,0.0592304,3513.5,3512.1,0.03494447]
[1718369311737,0.44926755,3513.4,3512.1,0.03494447]
[1718369311900,0.0592304,3513.3,3512.1,0.03494447]
[1718369313027,0.0592304,3513.5,3512.1,0.03494447]
[1718369317961,1.43344514,3513.4,3512.1,0.03494447]
[1718369318261,2.286,3513.2,3512.1,0.03494447]
[1718369318468,2.17054309,3513.1,3511.6,1.709]
[1718369318636,2.17054309,3513.1,3512.2,0.03484068]
[1718369318936,2.17054309,3513.1,3511.4,1.709]
[1718369319173,2.17054309,3513.1,3511.5,0.03531252]
[1718369319376,0.44565431,3513.0,3511.5,0.03531252]
[1718369319591,1.49267554,3512.9,3511.5,0.03531252]
[1718369322173,0.0592304,3512.9,3511.5,0.03531252]
[1718369322380,1.43344514,3512.8,3511.5,0.03531252]
[1718369322574,0.0592304,3512.7,3511.5,0.03531252]
[1718369322796,0.44926755,3512.6,3511.5,0.03531252]
[1718369322953,0.0592304,3512.5,3511.5,0.03531252]
[1718369323149,0.0592304,3512.5,3511.3,5.4485]
[1718369323347,0.0592304,3512.5,3511.6,0.0352591]
[1718369323590,0.0592304,3512.5,3511.3,2.4485]
[1718369323882,1.43344514,3512.8,3511.7,0.03519169]
[1718369324057,1.43344514,3512.8,3511.3,2.4485]
[1718369324058,0.54714035,3512.7,3511.3,2.4485]
[1718369324263,1.98058549,3512.7,3511.8,0.03512428]
[1718369324487,1.98058549,3512.7,3511.3,2.4485]
[1718369324684,1.98058549,3512.7,3511.9,0.03507087]
[1718369324853,0.19805855,3512.6,3511.3,2.4485]
[1718369325053,0.0592304,3512.5,3511.3,2.4485]
[1718369325281,0.0592304,3512.5,3511.4,0.03540794]
[1718369328190,2.3872,3512.4,3511.4,0.03540794]
[1718369328385,0.0592304,3512.3,3511.4,0.03540794]
[1718369328697,0.24464304,3512.2,3511.4,0.03540794]
[1718369329891,1.49267554,3512.1,3511.4,0.03540794]
[1718369330080,2.3872,3512.0,3511.4,0.03540794]
[1718369330280,0.24464304,3512.2,3510.9,2.4951501]
[1718369330480,0.0592304,3512.1,3511.0,1.43344514]
[1718369330663,0.0592304,3512.3,3511.0,1.46808484]
[1718369330857,0.0592304,3512.3,3511.4,0.701]
[1718369331278,0.7602304,3512.3,3511.5,0.03430255]
[1718369331486,0.0592304,3512.2,3511.5,0.03430255]
[1718369331793,0.66413344,3512.2,3511.5,0.03430255]
[1718369332977,0.701,3512.1,3511.6,0.03423513]
[1718369333297,0.0592304,3512.0,3510.9,0.1222501]
[1718369333793,0.0592304,3512.0,3511.0,0.7356397]
[1718369334596,0.0592304,3512.0,3511.1,0.701]
[1718369334893,0.0592304,3512.0,3511.1,0.03457226]
[1718369335260,0.42564374,3512.0,3511.0,0.701]
[1718369335462,0.0592304,3512.0,3511.2,0.73550483]
[1718369336204,0.60490304,3512.2,3511.3,3.0155]
[1718369336387,0.0592304,3512.2,3511.4,0.05694766]
[1718369336689,2.2888,3512.4,3511.5,0.701]
[1718369336896,0.89905855,3512.6,3511.6,0.05694763]
[1718369337086,0.38435625,3512.5,3511.6,0.05694763]
[1718369337283,0.38435625,3512.5,3511.7,0.03416772]
[1718369338598,0.38435625,3512.5,3511.5,0.701]
[1718369338768,1.08535625,3512.5,3511.6,0.05694621]
[1718369338974,1.08535625,3512.5,3511.6,0.09118134]
[1718369338975,0.38435625,3512.5,3511.6,0.09118134]
[1718369339186,0.35824148,3512.4,3511.6,0.09118134]
[1718369339606,0.32512585,3512.5,3511.6,0.09118134]
[1718369339813,2.3522,3512.8,3511.6,0.09118134]
[1718369339814,2.3412,3513.2,3511.6,0.09118134]
[1718369340022,3.0592304,3513.0,3511.6,0.09118134]
[1718369340674,3.0592304,3513.0,3511.6,0.03423513]
[1718369340901,1.26704304,3512.9,3511.6,0.03423513]
[1718369341108,0.0592304,3512.8,3511.6,0.03423513]
[1718369342035,5.46887554,3512.7,3511.6,0.03423513]
[1718369342184,5.46887554,3512.7,3510.9,0.1222501]
[1718369342382,3.77782642,3512.6,3510.9,0.1222501]
[1718369342727,1.49267554,3512.5,3510.9,0.1222501]
[1718369342889,1.49267554,3512.5,3511.0,0.03458376]
[1718369347398,1.49267554,3512.5,3511.1,2.3914]
[1718369347713,1.49267554,3512.5,3511.1,0.03466179]
[1718369348031,2.48771642,3512.4,3511.1,0.03466179]
[1718369348332,3.0,3512.1,3511.1,0.03466179]
[1718369348644,1.49267554,3512.0,3510.9,0.1222501]
[1718369349217,1.49267554,3512.0,3511.0,0.03472922]
[1718369349218,2.4442,3511.8,3511.0,0.03472922]
[1718369349447,0.45291795,3511.7,3510.9,0.1222501]
[1718369349663,0.0592304,3511.7,3510.9,0.1222501]
[1718369350142,1.49267554,3511.7,3510.9,0.1222501]
[1718369350371,0.0592304,3511.7,3510.9,0.1222501]
[1718369350718,0.0592304,3511.9,3510.9,2.5647501]
[1718369350917,0.0592304,3511.9,3511.0,0.03481037]
[1718369350918,1.49267554,3511.9,3511.0,0.03481037]
[1718369351120,0.44926755,3511.8,3511.0,0.03481037]
[1718369351351,0.0592304,3511.7,3511.0,0.03481037]
[1718369354389,0.0592304,3511.8,3511.0,0.09177028]
[1718369354525,0.0592304,3512.0,3511.1,0.05695232]
[1718369354725,3.0592304,3512.3,3511.1,0.05695232]
[1718369354985,2.388,3512.5,3511.2,0.03491329]
[1718369355121,0.0592304,3512.4,3511.3,2.46384924]
[1718369355330,0.0592304,3512.6,3511.3,2.46384924]
[1718369355657,0.0592304,3512.6,3511.4,0.03477844]
[1718369355869,0.0592304,3512.6,3511.4,0.0917243]
[1718369356269,0.0592304,3512.9,3511.4,0.0917243]
[1718369356585,1.49267554,3512.9,3511.4,0.0917243]
[1718369356834,4.49267554,3512.9,3511.4,0.0917243]
[1718369356991,4.43344514,3512.8,3511.4,0.0917243]
[1718369357190,2.4251,3512.4,3511.4,0.03477844]
[1718369357417,1.49267554,3512.3,3510.9,2.6197501]
[1718369357738,0.0592304,3512.2,3511.5,0.03454874]
[1718369357888,0.0592304,3512.2,3511.0,0.05695612]
[1718369358292,0.0592304,3512.2,3511.1,0.03481845]
[1718369358483,0.77586344,3512.2,3511.1,0.03481845]
[1718369359186,1.43344514,3512.1,3511.1,0.03481845]
[1718369359425,0.0592304,3512.0,3510.9,2.6197501]
[1718369359729,0.0592304,3512.0,3511.2,0.03481256]
[1718369359883,0.0592304,3512.0,3511.0,0.03494743]
[1718369360084,0.22093086,3511.9,3511.3,0.03474513]
[1718369360283,0.0592304,3511.8,3510.9,2.6197501]
[1718369360548,0.0592304,3511.8,3511.4,0.03467771]
[1718369360691,0.0592304,3511.8,3510.9,2.6197501]
[1718369360886,0.0592304,3511.8,3511.5,0.03461029]
[1718369361088,0.0592304,3511.8,3510.9,2.6197501]
[1718369361323,0.0592304,3511.8,3511.6,0.03454287]
[1718369361534,0.0592304,3511.7,3510.9,2.6197501]
[1718369362029,0.0592304,3511.7,3511.0,0.03494743]
[1718369365449,1.49267554,3511.7,3511.0,0.03494743]
[1718369365732,0.17136064,3511.6,3511.0,0.03494743]
[1718369365934,0.0592304,3511.5,3511.0,0.03494743]
[1718369366122,0.0592304,3511.5,3510.9,0.1222501]
[1718369366325,0.0592304,3511.5,3511.1,0.03488]
[1718369366527,0.0592304,3511.5,3511.0,0.03494743]
[1718369366719,0.45973402,3511.5,3510.9,0.1222501]
[1718369366889,0.45973402,3511.5,3511.1,0.03488]
[1718369367089,0.45973402,3511.5,3510.9,0.1222501]
[1718369367315,0.45973402,3511.5,3511.2,0.03481256]
[1718369367501,0.20645398,3511.4,3510.9,0.1222501]
[1718369367729,0.0592304,3511.3,3510.9,0.1222501]
[1718369372197,0.20645398,3511.4,3510.9,0.1222501]
[1718369372198,3.79657554,3511.2,3510.9,0.1222501]
[1718369378245,0.0592304,3511.2,3510.9,0.1222501]
[1718369378637,0.0592304,3511.2,3511.0,0.0349782]
[1718369378817,0.0592304,3511.2,3510.9,0.1222501]
[1718369379163,0.0592304,3511.2,3511.0,0.03524965]
[1718369379555,1.43344514,3511.1,3510.9,0.1222501]
[1718369379879,0.0592304,3511.0,3510.9,0.1222501]
[1718369380867,0.0592304,3511.3,3510.9,0.1222501]
[1718369381070,3.20645398,3511.4,3510.9,0.1222501]
[1718369381071,1.49267554,3511.2,3510.9,0.1222501]
[1718369382585,0.0592304,3511.2,3510.9,0.1222501]
[1718369383192,3.0592304,3511.3,3510.9,2.5691501]
[1718369383339,3.0,3511.6,3510.9,2.5691501]
[1718369383535,0.0592304,3511.5,3510.9,2.5691501]
[1718369384356,0.0592304,3512.0,3510.9,2.5691501]
[1718369384565,1.43344514,3511.9,3510.9,2.5691501]
[1718369384735,0.0592304,3511.8,3510.9,2.5691501]
[1718369384940,1.49267554,3511.7,3510.9,0.1222501]
[1718369385138,0.14926755,3511.6,3510.9,0.1222501]
[1718369385371,0.0592304,3511.5,3511.0,0.03410577]
[1718369385851,0.0592304,3511.5,3511.1,0.03403833]
[1718369386196,0.0592304,3511.5,3510.9,0.1222501]
[1718369386351,0.0592304,3511.8,3511.2,0.0339709]
[1718369386552,0.0592304,3511.7,3510.9,0.1222501]
[1718369386777,0.14926755,3511.6,3510.9,0.1222501]
[1718369386954,0.0592304,3511.5,3511.0,0.03410577]
[1718369387470,0.0592304,3511.5,3511.1,0.03403833]
[1718369387689,0.0592304,3511.5,3510.9,0.1222501]
[1718369388897,3.82957554,3511.4,3510.9,0.1222501]
[1718369389191,5.51157554,3511.4,3510.9,0.1222501]
[1718369389541,6.00409491,3511.4,3510.9,0.1222501]
[1718369392788,9.00009491,3511.4,3510.9,0.1222501]
[1718369392988,4.04251937,3511.3,3510.9,0.1222501]
[1718369393155,3.3186162,3511.2,3510.9,0.1222501]
[1718369393361,3.55,3511.1,3510.9,0.1222501]
[1718369393576,3.17467554,3511.0,3510.9,0.1222501]
[1718369395467,9.63079491,3511.0,3510.9,0.1222501]
[1718369400374,6.66719491,3511.0,3510.9,0.1222501]
[1718369400575,8.06626847,3511.0,3510.9,0.1222501]
[1718369400898,7.5737491,3511.0,3510.9,0.1222501]
[1718369402392,8.1237491,3511.0,3510.9,0.1222501]
[1718369402556,7.5737491,3511.0,3510.9,0.1222501]
[1718369404400,5.8917491,3511.0,3510.9,0.1222501]
[1718369404706,0.0592304,3511.0,3510.9,0.15684833]
[1718369404863,3.0,3511.9,3511.0,2.3745]
[1718369404864,0.0592304,3511.3,3511.0,2.3745]
[1718369405066,1.49267554,3511.8,3511.0,2.3745]
[1718369405279,0.0592304,3511.7,3511.0,2.3745]
[1718369405568,1.43344514,3511.6,3511.0,2.3745]
[1718369405766,0.0592304,3511.5,3511.0,2.3745]
[1718369405970,1.43344514,3511.4,3510.9,0.1222501]
[1718369406272,0.0592304,3511.3,3510.9,0.1222501]
[1718369406600,1.49267554,3511.2,3510.9,0.1222501]
[1718369406766,1.64194309,3511.2,3510.9,0.1222501]
[1718369406969,1.64194309,3511.2,3511.0,0.03433504]
[1718369407389,1.64194309,3511.2,3510.9,0.1222501]
[1718369407594,1.64194309,3511.2,3511.1,0.0342676]
[1718369407764,1.64194309,3511.2,3511.0,0.03433504]
[1718369407965,0.16419431,3511.1,3510.9,0.1222501]
[1718369408208,0.0592304,3511.0,3510.9,0.1222501]
[1718369411518,0.0592304,3511.0,3510.9,2.4988501]
[1718369411714,0.0592304,3511.5,3510.9,2.4988501]
[1718369412819,0.0592304,3511.9,3510.9,2.4988501]
[1718369412993,2.46636818,3511.8,3510.9,2.4988501]
[1718369413204,0.0592304,3511.7,3510.9,2.4988501]
[1718369413617,0.0592304,3511.7,3511.0,0.03430708]
[1718369414527,0.0592304,3512.0,3511.0,0.03430708]
[1718369414735,1.43344514,3511.9,3510.9,2.4988501]
[1718369414896,0.0592304,3511.8,3511.1,0.03381192]
[1718369415101,0.0592304,3511.7,3510.9,2.4988501]
[1718369418507,1.43344514,3511.6,3510.9,2.4988501]
[1718369418824,0.0592304,3511.5,3510.9,2.4988501]
[1718369420129,1.43344514,3511.4,3510.9,0.1222501]
[1718369420433,0.0592304,3511.3,3510.9,0.1222501]
[1718369420607,1.49267554,3511.2,3510.9,0.1222501]
[1718369420802,0.14926755,3511.1,3510.9,0.1222501]
[1718369421130,0.0592304,3511.0,3510.9,0.1222501]
[1718369424111,0.0592304,3511.4,3510.9,0.1222501]
[1718369424340,1.49267554,3511.4,3510.9,0.1222501]
[1718369424558,0.0592304,3511.4,3510.9,0.1222501]
[1718369427203,0.0592304,3511.8,3510.9,0.1222501]
[1718369427436,2.5482322,3511.7,3510.9,0.1222501]
[1718369427595,3.0,3511.6,3510.9,0.1222501]
[1718369427801,1.49267554,3511.5,3510.9,0.1222501]
[1718369429740,1.49267554,3511.5,3511.0,2.4917]
[1718369430412,0.0592304,3511.5,3511.0,2.4917]
[1718369430618,0.0592304,3511.8,3511.0,2.4917]
[1718369430817,0.0592304,3511.7,3511.1,0.0340048]
[1718369431029,0.0592304,3511.7,3511.0,2.4917]
[1718369431201,0.49253618,3512.0,3511.2,2.3816]
[1718369431524,2.3062,3512.8,3511.4,2.3816]
[1718369431737,1.49267554,3512.7,3511.4,2.3816]
[1718369432919,4.49267554,3512.7,3511.4,2.3816]
[1718369433255,4.98507528,3512.7,3511.4,2.3816]
[1718369433464,4.49267554,3512.7,3511.4,2.3816]
[1718369433742,3.89732753,3512.6,3511.4,2.3816]
[1718369433945,4.49267554,3512.5,3511.4,2.3816]
[1718369434346,4.98510086,3512.5,3511.4,2.3816]
[1718369435407,4.49267554,3512.5,3511.4,2.3816]
[1718369437805,4.49267554,3512.5,3511.4,2.3392096]
[1718369438750,4.49267554,3512.5,3511.5,0.03373509]
[1718369439824,4.49267554,3512.5,3511.0,0.05695266]
[1718369440230,4.49267554,3512.5,3511.1,0.0338287]
[1718369440427,1.49267554,3512.5,3511.1,0.0338287]
[1718369440944,1.49267554,3512.5,3511.2,2.3563]
[1718369441133,1.49267554,3512.5,3511.3,2.41325263]
[1718369441318,1.49267554,3512.5,3511.3,2.44694646]
[1718369441830,1.49267554,3512.5,3511.3,2.38999383]
[1718369442459,3.97677554,3512.5,3511.3,2.38999383]
[1718369442661,3.0,3512.4,3511.3,2.38999383]
[1718369442963,0.84664071,3512.3,3511.3,2.38999383]
[1718369443160,0.0592304,3512.2,3511.3,2.38999383]
[1718369443317,1.49267554,3512.2,3511.3,2.38999383]
[1718369443934,1.43344514,3512.1,3511.3,2.38999383]
[1718369444125,0.0592304,3512.0,3511.3,0.03369383]
[1718369444336,2.33563369,3511.9,3510.9,2.5251501]
[1718369444546,0.0592304,3511.8,3510.9,2.5251501]
[1718369444889,1.49267554,3511.7,3510.9,2.5251501]
[1718369447451,1.49267554,3511.7,3510.9,0.1222501]
[1718369447990,1.49267554,3511.7,3511.0,2.4156]
[1718369448123,1.84529935,3511.7,3511.0,2.4156]
[1718369449136,0.0592304,3511.7,3511.0,2.4156]
[1718369449566,0.0592304,3512.1,3511.1,0.03389579]
[1718369449725,1.43344514,3512.0,3511.1,0.03389579]
[1718369449927,1.43344514,3512.0,3511.0,2.4156]
[1718369449928,0.0592304,3511.9,3511.0,2.4156]
[1718369453299,0.0592304,3511.9,3511.1,0.03389579]
[1718369457279,2.2527,3511.8,3511.1,0.03389579]
[1718369457598,0.0592304,3511.7,3511.1,0.03389579]
[1718369460809,0.0592304,3511.7,3510.9,0.1222501]
[1718369460994,0.0592304,3511.7,3511.2,0.03395132]
[1718369461193,0.0592304,3511.7,3510.9,0.1222501]
[1718369461389,0.43376795,3511.7,3511.3,0.03388389]
[1718369461598,0.43376795,3511.7,3510.9,0.1222501]
[1718369461778,0.43376795,3511.7,3511.4,0.03381647]
[1718369462142,0.43376795,3511.7,3510.9,0.1222501]
[1718369462477,0.43376795,3511.7,3511.0,0.0340862]
[1718369462677,0.2686468,3511.6,3511.0,0.0340862]
[1718369462895,0.0592304,3511.5,3511.0,0.0340862]
[1718369463208,0.0592304,3511.5,3510.9,0.1222501]
[1718369463409,0.0592304,3511.5,3511.1,0.03401876]
[1718369463614,0.0592304,3511.5,3511.0,0.0341589]
[1718369463823,0.35474187,3511.5,3511.0,0.0341589]
[1718369463978,0.35474187,3511.5,3510.9,0.1222501]
[1718369464182,0.35474187,3511.5,3511.1,0.03409146]
[1718369464379,0.35474187,3511.5,3510.9,0.1222501]
[1718369464778,1.78818701,3511.5,3510.9,0.1222501]
[1718369464980,2.4016,3511.3,3510.9,0.1222501]
[1718369465329,1.49267554,3511.2,3510.9,0.1222501]
[1718369467202,0.0592304,3511.2,3510.9,0.1222501]
[1718369469588,0.0592304,3511.3,3510.9,0.1222501]
[1718369471263,0.0592304,3511.2,3510.9,0.1222501]
[1718369471421,1.62115994,3511.1,3510.9,0.1222501]
[1718369471616,0.0592304,3511.0,3510.9,0.1222501]
[1718369476125,0.0592304,3511.3,3510.9,0.1222501]
[1718369476329,0.0592304,3511.2,3510.9,0.1222501]
[1718369476628,0.4285048,3511.1,3510.9,0.1222501]
[1718369476828,0.0592304,3511.0,3510.9,0.1222501]
[1718369481067,0.7612304,3511.0,3510.9,0.1222501]
[1718369481453,2.19467554,3511.0,3510.9,0.1222501]
[1718369486736,1.49267554,3511.0,3510.9,0.1222501]
[1718369486964,2.56487189,3511.0,3510.9,0.1222501]
[1718369489421,8.05797189,3511.0,3510.9,0.1222501]
[1718369489553,9.10055721,3511.0,3510.9,0.1222501]
[1718369489752,11.17813759,3511.0,3510.9,0.1222501]
[1718369490066,14.02632759,3511.0,3510.9,0.1222501]